fUST/lending_fUST_20240512
["ID","MTS","AMOUNT","RATE_DAILY","PERIOD"]
[326845021,1715509852888,-500.0,0.00054794,120]
[326845022,1715509852897,-500.0,0.00054794,120]
[326845023,1715509852906,-500.0,0.00054794,120]
[326845024,1715509852915,-500.0,0.00054794,120]
[326845025,1715509852924,-500.0,0.00054794,120]
[326845026,1715509852934,-212.9719813,0.00054794,120]
[326845027,1715509852943,-500.0,0.00054794,120]
[326845028,1715509852952,-652.77,0.00054794,120]
[326845029,1715509852961,-502.48974402,0.00054794,120]
[326845030,1715509852970,-500.0,0.00054794,120]
[326845031,1715509852979,-502.60860247,0.00054794,120]
[326845032,1715509852988,-665.8,0.00054794,120]
[326845033,1715509852998,-500.0,0.00054794,120]
[326845034,1715509853007,-500.0,0.00054794,120]
[326845035,1715509853016,-500.0,0.00054794,120]
[326845036,1715509853025,-500.0,0.00054794,30]
[326845037,1715509853034,-500.0,0.00054794,120]
[326845038,1715509853043,-503.68780304,0.00054794,120]
[326845039,1715509853052,-2405.12,0.00054794,120]
[326845040,1715509853062,-1296.67,0.00054794,120]
[326845041,1715509853071,-500.0,0.00054794,120]
[326845042,1715509853080,-500.0,0.00054794,120]
[326845043,1715509853090,-515.15,0.00054794,120]
[326845044,1715509853099,-1000.0,0.00054794,120]
[326845045,1715509853109,-500.0,0.00054794,120]
[326845046,1715509853118,-500.66249921,0.00054794,120]
[326845047,1715509853127,-1711.77,0.00054794,120]
[326845048,1715509853136,-500.0,0.00054794,120]
[326845049,1715509853145,-151.35704071,0.00054794,120]
[326845050,1715509853154,-500.0,0.00054794,120]
[326845051,1715509853163,-634.68,0.00054794,120]
[326845052,1715509853172,-674.93,0.00054794,120]
[326845053,1715509853183,-502.69557615,0.00054794,120]
[326845054,1715509853194,-261.73142869,0.00054794,120]
[326845055,1715509853203,-500.0,0.00054794,120]
[326845056,1715509853212,-500.0,0.00054794,120]
[326845057,1715509853221,-500.0,0.00054794,120]
[326845058,1715509853230,-500.0,0.00054794,120]
[326845059,1715509853239,-500.0,0.00054794,120]
[326845060,1715509853247,-500.0,0.00054794,120]
[326845061,1715509853256,-500.0,0.00054794,120]
[326845062,1715509853265,-669.18,0.00054794,120]
[326845063,1715509853274,-662.7,0.00054794,120]
[326845064,1715509853283,-500.0,0.00054794,120]
[326845065,1715509853292,-672.84,0.00054794,120]
[326845066,1715509853301,-500.0,0.00054794,120]
[326845067,1715509853310,-500.0,0.00054794,120]
[326845068,1715509853319,-500.0,0.00054794,120]
[326845069,1715509853328,-500.0,0.00054794,120]
[326845070,1715509853337,-500.0,0.00054794,120]
[326845071,1715509853347,-500.0,0.00054794,120]
[326845072,1715509853357,-500.0,0.00054794,120]
[326845073,1715509853366,-500.0,0.00054794,120]
[326845074,1715509853375,-505.56403449,0.00054794,120]
[326845075,1715509853384,-500.0,0.00054794,120]
[326845076,1715509853393,-500.0,0.00054794,120]
[326845077,1715509853402,-500.0,0.00054794,120]
[326845078,1715509853411,-500.0,0.00054794,120]
[326845079,1715509853420,-229.51254058,0.00054794,120]
[326845080,1715509853429,-500.0,0.00054794,120]
[326845081,1715509853438,-500.0,0.00054794,120]
[326845082,1715509853447,-500.0,0.00054794,120]
[326845083,1715509853456,-500.0,0.00054794,120]
[326845084,1715509853465,-1082.38,0.00054794,120]
[326845085,1715509853474,-500.0,0.00054794,120]
[326845086,1715509853483,-500.0,0.00054794,120]
[326845087,1715509853492,-500.0,0.00054794,120]
[326845088,1715509853501,-504.10980181,0.00054794,120]
[326845089,1715509853511,-2510.37,0.00054794,120]
[326845090,1715509853520,-500.0,0.00054794,120]
[326845091,1715509853530,-168.472602,0.00054794,7]
[326845092,1715509853539,-500.0,0.00054794,120]
[326845093,1715509853548,-168.472602,0.00054794,7]
[326845094,1715509853557,-502.31808794,0.00054794,120]
[326845095,1715509853566,-396.9600849,0.00054794,120]
[326845096,1715509853575,-4167.16,0.00054794,120]
[326845097,1715509853585,-312.42288178,0.00054794,120]
[326845098,1715509853594,-1216.89,0.00054794,7]
[326845099,1715509853605,-500.0,0.00054794,120]
[326845100,1715509853614,-568.37,0.00054794,120]
[326845101,1715509853622,-503.76009696,0.00054794,120]
[326845102,1715509853631,-500.0,0.00054794,120]
[326845103,1715509853640,-500.0,0.00054794,120]
[326845104,1715509853649,-500.0,0.00054794,120]
[326845105,1715509853658,-501.48019029,0.00054794,120]
[326845106,1715509853667,-500.0,0.00054794,120]
[326845107,1715509853676,-501.25188416,0.00054794,120]
[326845108,1715509853685,-500.0,0.00054794,120]
[326845109,1715509853694,-500.0,0.00054794,120]
[326845110,1715509853703,-634.17,0.00054794,120]
[326845111,1715509853712,-500.61808321,0.00054794,2]
[326845112,1715509853721,-711.19,0.00054794,120]
[326845113,1715509853730,-491.28156498,0.00054794,120]
[326845114,1715509853739,-645.64,0.00054794,120]
[326845115,1715509853748,-500.0,0.00054794,120]
[326845116,1715509853757,-585.60051135,0.00054794,120]
[326845117,1715509853766,-634.59,0.00054794,120]
[326845118,1715509853776,-522.61,0.00054794,120]
[326845119,1715509853784,-500.0,0.00054794,120]
[326845120,1715509853793,-151.0,0.00054794,7]
[326845121,1715509853803,-1199.73,0.00054794,120]
[326845122,1715509853812,-502.89932319,0.00054794,120]
[326845123,1715509853821,-852.85,0.00054794,120]
[326845124,1715509853830,-500.0,0.00054794,120]
[326845125,1715509853839,-502.32341109,0.00054794,120]
[326845126,1715509853848,-500.0,0.00054794,120]
[326845127,1715509853857,-535.61414565,0.00054794,120]
[326845128,1715509853866,-625.2,0.00054794,120]
[326845129,1715509853875,-500.0,0.00054794,120]
[326845130,1715509853883,-500.0,0.00054794,120]
[326845131,1715509853892,-728.74,0.00054794,120]
[326845132,1715509853901,-501.04,0.00054794,120]
[326845133,1715509853909,-588.33,0.00054794,120]
[326845134,1715509853918,-500.0,0.00054794,120]
[326845135,1715509853927,-500.0,0.00054794,120]
[326845136,1715509853935,-500.0,0.00054794,120]
[326845137,1715509853944,-500.0,0.00054794,120]
[326845138,1715509853953,-500.0,0.00054794,120]
[326845139,1715509853962,-500.0,0.00054794,120]
[326845140,1715509853971,-1576.44,0.00054794,120]
[326845141,1715509853980,-500.0,0.00054794,120]
[326845142,1715509853989,-500.0,0.00054794,120]
[326845143,1715509853998,-500.0,0.00054794,120]
[326845144,1715509854007,-504.50800848,0.00054794,120]
[326845145,1715509854016,-500.0,0.00054794,120]
[326845146,1715509854024,-500.0,0.00054794,120]
[326845147,1715509854033,-500.0,0.00054794,120]
[326845148,1715509854042,-500.58963408,0.00054794,120]
[326845149,1715509854051,-500.0,0.00054794,120]
[326845150,1715509854060,-642.78,0.00054794,120]
[326845151,1715509854069,-500.0,0.00054794,120]
[326845152,1715509854077,-500.0,0.00054794,120]
[326845153,1715509854086,-1474.83,0.00054794,120]
[326845154,1715509854095,-500.0,0.00054794,120]
[326845155,1715509854104,-500.0,0.00054794,120]
[326845156,1715509854113,-500.0,0.00054794,120]
[326845157,1715509854122,-500.0,0.00054794,120]
[326845158,1715509854131,-1138.94,0.00054794,120]
[326845159,1715509854139,-450.68192607,0.00054794,120]
[326845160,1715509854148,-500.0,0.00054794,120]
[326845161,1715509854157,-2052.53,0.00054794,120]
[326845162,1715509854166,-500.0,0.00054794,120]
[326845163,1715509854175,-151.0,0.00054794,7]
[326845164,1715509854186,-3343.91,0.00054794,120]
[326845165,1715509854195,-500.0,0.00054794,120]
[326845166,1715509854203,-1280.34,0.00054794,120]
[326845167,1715509854212,-589.15,0.00054794,120]
[326845168,1715509854221,-500.0,0.00054794,120]
[326845169,1715509854230,-990.89,0.00054794,120]
[326845170,1715509854239,-500.0,0.00054794,120]
[326845171,1715509854248,-1022.63,0.00054794,120]
[326845172,1715509854257,-1377.96,0.00054794,120]
[326845173,1715509854270,-270.65599063,0.00054794,120]
[326845174,1715509854279,-501.42453569,0.00054794,120]
[326845175,1715509854287,-500.0,0.00054794,120]
[326845176,1715509854296,-849.72,0.00054794,120]
[326845177,1715509854305,-500.0,0.00054794,120]
[326845178,1715509854314,-151.0,0.00054794,7]
[326845179,1715509854323,-500.0,0.00054794,120]
[326845180,1715509854331,-500.0,0.00054794,120]
[326845181,1715509854340,-500.0,0.00054794,120]
[326845182,1715509854348,-501.54464358,0.00054794,120]
[326845183,1715509854358,-500.0,0.00054794,120]
[326845184,1715509854367,-500.0,0.00054794,120]
[326845185,1715509854375,-500.0,0.00054794,120]
[326845186,1715509854384,-318.67002492,0.00054794,120]
[326845187,1715509854393,-2169.41,0.00054794,120]
[326845188,1715509854401,-378.77987691,0.00054794,120]
[326845189,1715509854410,-658.6,0.00054794,120]
[326845190,1715509854419,-500.0,0.00054794,120]
[326845191,1715509854427,-926.02,0.00054794,120]
[326845192,1715509854436,-500.0,0.00054794,120]
[326845193,1715509854445,-500.0,0.00054794,120]
[326845194,1715509854454,-2031.16,0.00054794,120]
[326845195,1715509854463,-440.55766125,0.00054794,120]
[326845196,1715509854472,-500.0,0.00054794,120]
[326845197,1715509854587,-500.0,0.00054794,120]
[326845198,1715509854597,-246.74876627,0.00054794,120]
[326845199,1715509854607,-1300.61,0.00054794,120]
[326845200,1715509854616,-4158.51,0.00054794,120]
[326845201,1715509854626,-500.0,0.00054794,120]
[326845202,1715509854635,-500.0,0.00054794,120]
[326845203,1715509854644,-1707.07,0.00054794,120]
[326845204,1715509854653,-500.0,0.00054794,120]
[326845205,1715509854664,-500.0,0.00054794,120]
[326845206,1715509854673,-281.52223422,0.00054794,120]
[326845207,1715509854682,-747.04,0.00054794,120]
[326845208,1715509854691,-500.0,0.00054794,120]
[326845209,1715509854701,-539.43881476,0.00054794,120]
[326845210,1715509854710,-500.0,0.00054794,120]
[326845211,1715509854719,-501.80506602,0.00054794,120]
[326845212,1715509854729,-610.04,0.00054794,120]
[326845213,1715509854738,-500.0,0.00054794,120]
[326845214,1715509854747,-500.0,0.00054794,120]
[326845215,1715509854756,-500.0,0.00054794,120]
[326845216,1715509854765,-616.93,0.00054794,120]
[326845217,1715509854774,-500.0,0.00054794,120]
[326845218,1715509854784,-555.14,0.00054794,120]
[326845219,1715509854793,-500.0,0.00054794,120]
[326845220,1715509854803,-500.0,0.00054794,120]
[326845221,1715509854813,-500.0,0.00054794,120]
[326845222,1715509854822,-663.17,0.00054794,60]
[326845223,1715509854831,-151.0,0.00054794,7]
[326845224,1715509854840,-320.12523127,0.00054794,120]
[326845225,1715509854850,-501.617944,0.00054794,120]
[326845226,1715509854859,-500.0,0.00054794,120]
[326845227,1715509854868,-1965.65,0.00054794,120]
[326845228,1715509854877,-500.0,0.00054794,120]
[326845229,1715509854887,-509.26051372,0.00054794,120]
[326845230,1715509854897,-500.0,0.00054794,120]
[326845231,1715509854906,-500.0,0.00054794,120]
[326845232,1715509854915,-501.02534523,0.00054794,120]
[326845233,1715509854924,-501.14619017,0.00054794,120]
[326845234,1715509854933,-500.0,0.00054794,120]
[326845235,1715509854942,-500.0,0.00054794,120]
[326845236,1715509854951,-1720.11,0.00054794,120]
[326845237,1715509854961,-500.0,0.00054794,120]
[326845238,1715509854971,-500.0,0.00054794,120]
[326845239,1715509854981,-176.90843394,0.00054794,120]
[326845240,1715509854990,-1258.86,0.00054794,7]
[326845241,1715509855000,-504.61230427,0.00054794,120]
[326845242,1715509855009,-500.0,0.00054794,120]
[326845243,1715509855019,-519.46054452,0.00054794,120]
[326845244,1715509855028,-531.16,0.00054794,120]
[326845245,1715509855038,-456.96424544,0.00054794,120]
[326845246,1715509855047,-500.0,0.00054794,120]
[326845247,1715509855056,-500.0,0.00054794,120]
[326845248,1715509855066,-500.0,0.00054794,120]
[326845249,1715509855075,-1275.8,0.00054794,120]
[326845250,1715509855084,-1330.34,0.00054794,120]
[326845251,1715509855094,-534.54013207,0.00054794,120]
[326845252,1715509855103,-500.0,0.00054794,120]
[326845253,1715509855112,-1477.44,0.00054794,120]
[326845254,1715509855121,-345.15231646,0.00054794,120]
[326845255,1715509855130,-500.0,0.00054794,120]
[326845256,1715509855139,-500.0,0.00054794,120]
[326845257,1715509855148,-500.0,0.00054794,120]
[326845258,1715509855157,-503.81265411,0.00054794,120]
[326845259,1715509855166,-500.0,0.00054794,120]
[326845260,1715509855175,-500.0,0.00054794,120]
[326845261,1715509855190,-1415.41,0.00054794,120]
[326845262,1715509855199,-500.0,0.00054794,120]
[326845263,1715509855208,-500.0,0.00054794,120]
[326845264,1715509855217,-500.0,0.00054794,120]
[326845265,1715509855226,-500.0,0.00054794,120]
[326845266,1715509855236,-500.0,0.00054794,120]
[326845267,1715509855245,-244.98076584,0.00054794,120]
[326845268,1715509855254,-790.3,0.00054794,120]
[326845269,1715509855263,-500.0,0.00054794,120]
[326845270,1715509855272,-500.0,0.00054794,120]
[326845271,1715509855281,-1299.65,0.00054794,120]
[326845272,1715509855291,-475.1695692,0.00054794,120]
[326845273,1715509855300,-631.96,0.00054794,120]
[326845274,1715509855309,-2939.68,0.00054794,21]
[326845275,1715509855318,-775.43,0.00054794,120]
[326845276,1715509855327,-500.0,0.00054794,120]
[326845277,1715509855336,-500.0,0.00054794,120]
[326845278,1715509855345,-3584.43,0.00054794,120]
[326845279,1715509855355,-500.0,0.00054794,120]
[326845280,1715509855364,-4428.92,0.00054794,120]
[326845281,1715509855374,-974.56,0.00054794,120]
[326845282,1715509855383,-500.0,0.00054794,120]
[326845283,1715509855393,-442.3185059,0.00054794,120]
[326845284,1715509855402,-500.0,0.00054794,120]
[326845285,1715509855411,-1052.97,0.00054794,120]
[326845286,1715509855420,-497.27217141,0.00054794,120]
[326845287,1715509855429,-513.18138505,0.00054794,120]
[326845288,1715509855438,-721.17,0.00054794,120]
[326845289,1715509855447,-661.04,0.00054794,120]
[326845290,1715509855457,-500.0,0.00054794,120]
[326845291,1715509855466,-501.79088856,0.00054794,120]
[326845292,1715509855475,-625.85,0.00054794,120]
[326845293,1715509855484,-278.81427775,0.00054794,120]
[326845294,1715509855493,-500.0,0.00054794,120]
[326845295,1715509855503,-980.18,0.00054794,120]
[326845296,1715509855513,-614.26,0.00054794,120]
[326845297,1715509855523,-500.0,0.00054794,120]
[326845298,1715509855532,-588.25,0.00054794,120]
[326845299,1715509855542,-588.25,0.00054794,120]
[326845300,1715509855552,-588.25,0.00054794,120]
[326845301,1715509855562,-588.25,0.00054794,120]
[326845302,1715509855572,-588.25,0.00054794,120]
[326845303,1715509855581,-588.25,0.00054794,120]
[326845304,1715509855591,-1131.83,0.00054794,120]
[326845305,1715509855600,-588.25,0.00054794,120]
[326845306,1715509855609,-588.25,0.00054794,120]
[326845307,1715509855619,-588.25,0.00054794,120]
[326845308,1715509855628,-588.25,0.00054794,120]
[326845309,1715509855638,-151.0,0.00054794,7]
[326845310,1715509855647,-588.25,0.00054794,120]
[326845311,1715509855657,-588.25,0.00054794,120]
[326845312,1715509855666,-500.0,0.00054794,120]
[326845313,1715509855676,-504.05123794,0.00054794,120]
[326845314,1715509855686,-588.25,0.00054794,120]
[326845315,1715509855695,-583.64,0.00054794,120]
[326845316,1715509855704,-500.0,0.00054794,120]
[326845317,1715509855714,-588.25,0.00054794,120]
[326845318,1715509855723,-588.25,0.00054794,120]
[326845319,1715509855733,-513.88,0.00054794,120]
[326845320,1715509855742,-588.25,0.00054794,120]
[326845321,1715509855751,-500.0,0.00054794,120]
[326845322,1715509855761,-588.25,0.00054794,120]
[326845323,1715509855771,-588.25,0.00054794,120]
[326845324,1715509855780,-588.25,0.00054794,120]
[326845325,1715509855790,-588.25,0.00054794,120]
[326845326,1715509855799,-588.25,0.00054794,120]
[326845327,1715509855809,-151.0,0.00054794,7]
[326845328,1715509855819,-500.0,0.00054794,120]
[326845329,1715509855829,-588.25,0.00054794,120]
[326845330,1715509855839,-588.25,0.00054794,120]
[326845331,1715509855848,-588.32560792,0.00054794,120]
[326845332,1715509855859,-500.0,0.00054794,120]
[326845333,1715509855869,-500.0,0.00054794,120]
[326845334,1715509855879,-5121.64,0.00054794,120]
[326845335,1715509855889,-2410.3,0.00054794,120]
[326845336,1715509855899,-1457.89,0.00054794,120]
[326845337,1715509855909,-719.29,0.00054794,120]
[326845338,1715509855919,-500.0,0.00054794,120]
[326845339,1715509855929,-500.60099146,0.00054794,120]
[326845340,1715509855938,-500.93420273,0.00054794,120]
[326845341,1715509855948,-1228.7,0.00054794,120]
[326845342,1715509855957,-500.0,0.00054794,120]
[326845343,1715509855967,-500.0,0.00054794,120]
[326845344,1715509855977,-500.0,0.00054794,120]
[326845345,1715509855986,-568.11506098,0.00054794,120]
[326845346,1715509855996,-1264.94,0.00054794,120]
[326845347,1715509856006,-1513.78,0.00054794,120]
[326845348,1715509856015,-673.28,0.00054794,120]
[326845349,1715509856024,-500.0,0.00054794,120]
[326845350,1715509856034,-519.044299,0.00054794,7]
[326845351,1715509856043,-694.76,0.00054794,120]
[326845352,1715509856053,-1272.39,0.00054794,120]
[326845353,1715509856062,-519.044299,0.00054794,7]
[326845354,1715509856072,-332.02542512,0.00054794,120]
[326845355,1715509856081,-2272.31,0.00054794,120]
[326845356,1715509856091,-235.09586529,0.00054794,120]
[326845357,1715509856100,-11483.2,0.00054794,120]
[326845358,1715509856111,-500.0,0.00054794,120]
[326845359,1715509856120,-500.0,0.00054794,120]
[326845360,1715509856129,-500.0,0.00054794,120]
[326845361,1715509856139,-500.0,0.00054794,7]
[326845362,1715509856148,-162.2040565,0.00054794,4]
[326845363,1715509856157,-500.0,0.00054794,120]
[326845364,1715509856166,-606.15,0.00054794,120]
[326845365,1715509856176,-151.0,0.00054794,7]
[326845366,1715509856188,-500.0,0.00054794,120]
[326845367,1715509856198,-500.0,0.00054794,120]
[326845368,1715509856207,-765.03,0.00054794,120]
[326845369,1715509856215,-287.597217,0.00054794,7]
[326845370,1715509856225,-500.0,0.00054794,120]
[326845371,1715509856234,-502.40246308,0.00054794,120]
[326845372,1715509856244,-287.597217,0.00054794,7]
[326845373,1715509856253,-500.0,0.00054794,120]
[326845374,1715509856264,-500.0,0.00054794,120]
[326845375,1715509856274,-500.0,0.00054794,120]
[326845376,1715509856283,-910.45,0.00054794,120]
[326845377,1715509856292,-508.17994064,0.00054794,120]
[326845378,1715509856301,-500.0,0.00054794,120]
[326845379,1715509856311,-1594.77,0.00054794,120]
[326845380,1715509856320,-1006.74497511,0.00054794,120]
[326845381,1715509856329,-503.07200119,0.00054794,120]
[326845382,1715509856338,-502.45528482,0.00054794,120]
[326845383,1715509856348,-749.73,0.00054794,120]
[326845384,1715509856358,-500.0,0.00054794,120]
[326845385,1715509856367,-1094.1,0.00054794,120]
[326845386,1715509856376,-500.0,0.00054794,120]
[326845387,1715509856385,-501.23275539,0.00054794,30]
[326845388,1715509856394,-500.0,0.00054794,120]
[326845389,1715509856403,-760.68,0.00054794,120]
[326845390,1715509856412,-500.0,0.00054794,120]
[326845391,1715509856421,-567.18,0.00054794,120]
[326845392,1715509856430,-567.18,0.00054794,120]
[326845393,1715509856439,-567.18,0.00054794,120]
[326845394,1715509856448,-1439.15,0.00054794,120]
[326845395,1715509856458,-567.18,0.00054794,120]
[326845396,1715509856467,-567.18,0.00054794,120]
[326845397,1715509856477,-500.0,0.00054794,120]
[326845398,1715509856486,-567.18,0.00054794,120]
[326845399,1715509856495,-567.18,0.00054794,120]
[326845400,1715509856504,-500.0,0.00054794,120]
[326845401,1715509856513,-567.18,0.00054794,120]
[326845402,1715509856523,-500.0,0.00054794,120]
[326845403,1715509856532,-567.18,0.00054794,120]
[326845404,1715509856541,-728.36,0.00054794,120]
[326845405,1715509856550,-567.18,0.00054794,120]
[326845406,1715509856559,-567.18,0.00054794,120]
[326845407,1715509856568,-567.18,0.00054794,120]
[326845408,1715509856577,-567.18,0.00054794,120]
[326845409,1715509856586,-567.18,0.00054794,120]
[326845410,1715509856595,-567.18,0.00054794,120]
[326845411,1715509856604,-406.79861519,0.00054794,120]
[326845412,1715509856614,-176.70465601,0.00054794,120]
[326845413,1715509856624,-567.18,0.00054794,120]
[326845414,1715509856633,-464.40478798,0.00054794,120]
[326845415,1715509856642,-567.18,0.00054794,120]
[326845416,1715509856652,-567.18,0.00054794,120]
[326845417,1715509856661,-567.18,0.00054794,120]
[326845418,1715509856671,-554.07,0.00054794,120]
[326845419,1715509856680,-567.18,0.00054794,120]
[326845420,1715509856782,-567.18,0.00054794,120]
[326845421,1715509856802,-500.0,0.00054794,120]
[326845422,1715509856812,-567.18,0.00054794,120]
[326845423,1715509856821,-567.18,0.00054794,120]
[326845424,1715509856830,-567.37128074,0.00054794,120]
[326845425,1715509856839,-571.03,0.00054794,120]
[326845426,1715509856848,-571.03,0.00054794,120]
[326845427,1715509856858,-571.03,0.00054794,120]
[326845428,1715509856867,-571.03,0.00054794,120]
[326845429,1715509856877,-571.03,0.00054794,120]
[326845430,1715509856886,-500.0,0.00054794,120]
[326845431,1715509856895,-571.03,0.00054794,120]
[326845432,1715509856905,-571.03,0.00054794,120]
[326845433,1715509856914,-571.03,0.00054794,120]
[326845434,1715509856923,-571.03,0.00054794,120]
[326845435,1715509856932,-571.03,0.00054794,120]
[326845436,1715509856941,-571.03,0.00054794,120]
[326845437,1715509856951,-506.1600138,0.00054794,120]
[326845438,1715509856960,-571.03,0.00054794,120]
[326845439,1715509856969,-851.93,0.00054794,120]
[326845440,1715509856978,-21061.66,0.00054794,120]
[326845441,1715509856987,-571.03,0.00054794,120]
[326845442,1715509856996,-571.03,0.00054794,120]
[326845443,1715509857005,-571.03,0.00054794,120]
[326845444,1715509857015,-571.03,0.00054794,120]
[326845445,1715509857024,-571.03,0.00054794,120]
[326845446,1715509857033,-500.0,0.00054794,120]
[326845447,1715509857042,-571.03,0.00054794,120]
[326845448,1715509857052,-571.03,0.00054794,120]
[326845449,1715509857061,-201.48228637,0.00054794,120]
[326845450,1715509857070,-571.03,0.00054794,120]
[326845451,1715509857078,-571.03,0.00054794,120]
[326845452,1715509857088,-181.189708,0.00054794,2]
[326845453,1715509857097,-1275.67,0.00054794,120]
[326845454,1715509857108,-571.03,0.00054794,120]
[326845455,1715509857117,-571.03,0.00054794,120]
[326845456,1715509857126,-571.18055629,0.00054794,120]
[326845457,1715509857136,-500.0,0.00054794,120]
[326845458,1715509857145,-697.89,0.00054794,120]
[326845459,1715509857154,-1584.34,0.00054794,120]
[326845460,1715509857163,-500.0,0.00054794,120]
[326845461,1715509857172,-500.0,0.00054794,120]
[326845462,1715509857181,-1080.54,0.00054794,120]
[326845463,1715509857194,-504.38250345,0.00054794,120]
[326845464,1715509857203,-181.189708,0.00054794,2]
[326845465,1715509857212,-461.73422302,0.00054794,120]
[326845466,1715509857221,-500.0,0.00054794,120]
[326845467,1715509857231,-500.0,0.00054794,120]
[326845468,1715509857240,-500.0,0.00054794,120]
[326845469,1715509857249,-222.38,0.00054795,120]
[326845470,1715509857259,-151.69851405,0.00054795,120]
[326845471,1715509857268,-151.69851405,0.00054795,120]
[326845472,1715509857277,-152.19,0.00054795,120]
[326845473,1715509857286,-151.82351405,0.00054795,120]
[326845474,1715509857295,-151.82351405,0.00054795,120]
[326845475,1715509857305,-151.82351405,0.00054795,120]
[326845476,1715509857314,-151.82351405,0.00054795,120]
[326845477,1715509857323,-151.82351405,0.00054795,120]
[326845478,1715509857332,-151.82351405,0.00054795,120]
[326845479,1715509857341,-151.82351405,0.00054795,120]
[326845480,1715509857350,-151.82351405,0.00054795,120]
[326845481,1715509857360,-151.82351405,0.00054795,120]
[326845482,1715509857369,-151.82351405,0.00054795,120]
[326845483,1715509857378,-151.82351405,0.00054795,120]
[326845484,1715509857387,-152.32,0.00054795,120]
[326845485,1715509857396,-223.46,0.00054795,120]
[326845486,1715509857405,-178.66876016,0.00054795,120]
[326845487,1715509857414,-178.66876016,0.00054795,120]
[326845488,1715509857423,-178.66876016,0.00054795,120]
[326845489,1715509857432,-178.66876016,0.00054795,120]
[326845490,1715509857442,-179.16,0.00054795,120]
[326845491,1715509857451,-744.0604809,0.00054795,120]
[326845492,1715509857461,-744.0604809,0.00054795,120]
[326845493,1715509857470,-744.0604809,0.00054795,120]
[326845494,1715509857480,-744.0604809,0.00054795,120]
[326845495,1715509857489,-744.0604809,0.00054795,120]
[326845496,1715509857498,-744.0604809,0.00054795,120]
[326845497,1715509857507,-744.0604809,0.00054795,120]
[326845498,1715509857517,-744.0604809,0.00054795,120]
[326845499,1715509857527,-744.0604809,0.00054795,120]
[326845500,1715509857536,-744.0604809,0.00054795,120]
[326845501,1715509857545,-744.0604809,0.00054795,120]
[326845502,1715509857554,-744.0604809,0.00054795,120]
[326845503,1715509857563,-744.0604809,0.00054795,120]
[326845504,1715509857572,-744.0604809,0.00054795,120]
[326845505,1715509857582,-744.0604809,0.00054795,120]
[326845506,1715509857591,-744.0604809,0.00054795,120]
[326845507,1715509857600,-744.0604809,0.00054795,120]
[326845508,1715509857610,-744.0604809,0.00054795,120]
[326845509,1715509857619,-744.0604809,0.00054795,120]
[326845510,1715509857628,-744.0604809,0.00054795,120]
[326845511,1715509857637,-744.0604809,0.00054795,120]
[326845512,1715509857647,-744.0604809,0.00054795,120]
[326845513,1715509857657,-744.0604809,0.00054795,120]
[326845514,1715509857667,-744.0604809,0.00054795,120]
[326845515,1715509857677,-744.0604809,0.00054795,120]
[326845516,1715509857686,-744.0604809,0.00054795,120]
[326845517,1715509857695,-744.0604809,0.00054795,120]
[326845518,1715509857704,-744.0604809,0.00054795,120]
[326845519,1715509857713,-729.17927128,0.00054795,120]
[326845520,1715509857722,-729.17927128,0.00054795,120]